[Event "Titled Tuesday Blitz March 15 Early 2022"]
[White "Manukyan, Artyom"]
[Black "Chernomordik, Pavel"]
[WhiteFideId "13305786"]
[BlackFideId "2804530"]
[WhiteElo "2034"]
[BlackElo "2249"]
[Result "0-1"]
[Round "08"]
[TimeControl "180+1"]
[Date "2022.03.15"]
[WhiteClock "0:00:01"]
[BlackClock "0:00:11"]

1. d4 {[%clk 0:03:00]}  g6 {[%clk 0:02:59]} 2. Nf3 {[%clk 0:02:57]}  Bg7 {[%clk 0:02:59]} 3. c4 {[%clk 0:02:58]}  d6 {[%clk 0:02:59]} 4. g3 {[%clk 0:02:58]}  Nf6 {[%clk 0:02:59]} 5. Bg2 {[%clk 0:02:58]}  O-O {[%clk 0:02:59]} 6. O-O {[%clk 0:02:59]}  c6 {[%clk 0:02:57]} 7. Nc3 {[%clk 0:02:57]}  a6 {[%clk 0:02:57]} 8. e4 {[%clk 0:02:58]}  Nfd7 {[%clk 0:02:57]} 9. b3 {[%clk 0:02:53]}  b5 {[%clk 0:02:56]} 10. Bb2 {[%clk 0:02:51]}  bxc4 {[%clk 0:02:56]} 11. bxc4 {[%clk 0:02:52]}  a5 {[%clk 0:02:55]} 12. Rc1 {[%clk 0:02:51]}  Ba6 {[%clk 0:02:55]} 13. Ne2 {[%clk 0:02:38]}  Nb6 {[%clk 0:02:45]} 14. Nd2 {[%clk 0:02:37]}  N8d7 {[%clk 0:02:28]} 15. Qc2 {[%clk 0:02:26]}  Rb8 {[%clk 0:02:24]} 16. Rfe1 {[%clk 0:02:24]}  c5 {[%clk 0:02:20]} 17. Rb1 {[%clk 0:01:56]}  cxd4 {[%clk 0:02:16]} 18. Bxd4 {[%clk 0:01:54]}  Bxd4 {[%clk 0:02:07]} 19. Nxd4 {[%clk 0:01:55]}  Rc8 {[%clk 0:02:07]} 20. Nb5 {[%clk 0:01:42]}  Ne5 {[%clk 0:02:00]} 21. Bf1 {[%clk 0:01:16]}  Qd7 {[%clk 0:01:54]} 22. f4 {[%clk 0:01:11]}  Bxb5 {[%clk 0:01:35]} 23. fxe5 {[%clk 0:01:10]}  dxe5 {[%clk 0:01:35]} 24. Rec1 {[%clk 0:00:38]}  Qd4+ {[%clk 0:01:31]} 25. Kg2 {[%clk 0:00:36]}  Ba4 {[%clk 0:01:17]} 26. Qc3 {[%clk 0:00:33]}  Nd7 {[%clk 0:01:09]} 27. Qxd4 {[%clk 0:00:29]}  exd4 {[%clk 0:01:08]} 28. Rb7 {[%clk 0:00:28]}  e6 {[%clk 0:01:01]} 29. Nb3 {[%clk 0:00:24]}  Bxb3 {[%clk 0:00:57]} 30. axb3 {[%clk 0:00:25]}  Nc5 {[%clk 0:00:56]} 31. Rb5 {[%clk 0:00:25]}  Nxe4 {[%clk 0:00:55]} 32. Rxa5 {[%clk 0:00:22]}  Ra8 {[%clk 0:00:49]} 33. Rca1 {[%clk 0:00:18]}  Rxa5 {[%clk 0:00:48]} 34. Rxa5 {[%clk 0:00:18]}  Rb8 {[%clk 0:00:46]} 35. Ra3 {[%clk 0:00:15]}  Nd2 {[%clk 0:00:40]} 36. c5 {[%clk 0:00:12]}  Nxb3 {[%clk 0:00:22]} 37. c6 {[%clk 0:00:11]}  Nc5 {[%clk 0:00:18]} 38. Bb5 {[%clk 0:00:05]}  Rc8 {[%clk 0:00:16]} 39. Kf3 {[%clk 0:00:04]}  e5 {[%clk 0:00:15]} 40. Ra7 {[%clk 0:00:02]}  e4+ {[%clk 0:00:14]} 41. Ke2 {[%clk 0:00:02]}  Ne6 {[%clk 0:00:12]} 42. Kd2 {[%clk 0:00:01]}  Nc7 {[%clk 0:00:11]} 0-1


[Site "https://www.chess.com"]

[Event "Titled Tuesday Blitz March 15 Early 2022"]
[White "Molina, Roberto Junio Brito"]
[Black "Chen, Qi b"]
[WhiteFideId "2109450"]
[BlackFideId "8614733"]
[WhiteElo "2432"]
[BlackElo "2432"]
[Result "1-0"]
[Round "08"]
[TimeControl "180+1"]
[Date "2022.03.15"]
[WhiteClock "0:00:32"]
[BlackClock "0:00:02"]

1. d4 {[%clk 0:02:39]}  Nf6 {[%clk 0:02:59]} 2. c4 {[%clk 0:02:38]}  e6 {[%clk 0:03:00]} 3. Nf3 {[%clk 0:02:37]}  d5 {[%clk 0:03:00]} 4. Nc3 {[%clk 0:02:37]}  dxc4 {[%clk 0:03:00]} 5. e4 {[%clk 0:02:32]}  b5 {[%clk 0:03:00]} 6. e5 {[%clk 0:02:31]}  Nd5 {[%clk 0:03:00]} 7. Nxb5 {[%clk 0:02:31]}  Nb6 {[%clk 0:03:00]} 8. Be3 {[%clk 0:02:28]}  Nc6 {[%clk 0:02:58]} 9. Qc1 {[%clk 0:02:25]}  Ba6 {[%clk 0:02:02]} 10. Nc3 {[%clk 0:02:14]}  Be7 {[%clk 0:01:49]} 11. Be2 {[%clk 0:02:13]}  O-O {[%clk 0:01:48]} 12. O-O {[%clk 0:02:13]}  Nb4 {[%clk 0:01:46]} 13. Rd1 {[%clk 0:02:13]}  Qe8 {[%clk 0:01:41]} 14. a3 {[%clk 0:02:10]}  N4d5 {[%clk 0:01:10]} 15. b4 {[%clk 0:02:09]}  Nxe3 {[%clk 0:00:56]} 16. fxe3 {[%clk 0:02:08]}  f6 {[%clk 0:00:57]} 17. Ne4 {[%clk 0:01:57]}  Qg6 {[%clk 0:00:18]} 18. exf6 {[%clk 0:01:43]}  gxf6 {[%clk 0:00:15]} 19. Nc5 {[%clk 0:01:42]}  Bxc5 {[%clk 0:00:14]} 20. dxc5 {[%clk 0:01:33]}  Nd5 {[%clk 0:00:15]} 21. Bxc4 {[%clk 0:01:31]}  Bxc4 {[%clk 0:00:15]} 22. Qxc4 {[%clk 0:01:31]}  Kh8 {[%clk 0:00:15]} 23. Qc1 {[%clk 0:01:20]}  Rg8 {[%clk 0:00:15]} 24. Ra2 {[%clk 0:01:20]}  Qe4 {[%clk 0:00:10]} 25. Rf2 {[%clk 0:01:18]}  Rg7 {[%clk 0:00:07]} 26. Re1 {[%clk 0:01:11]}  Rag8 {[%clk 0:00:06]} 27. Ree2 {[%clk 0:01:12]}  a5 {[%clk 0:00:05]} 28. b5 {[%clk 0:01:10]}  Qa4 {[%clk 0:00:04]} 29. Nd4 {[%clk 0:01:06]}  e5 {[%clk 0:00:03]} 30. Nf5 {[%clk 0:00:47]}  Rg6 {[%clk 0:00:03]} 31. b6 {[%clk 0:00:46]}  cxb6 {[%clk 0:00:03]} 32. cxb6 {[%clk 0:00:47]}  Qb3 {[%clk 0:00:03]} 33. e4 {[%clk 0:00:37]}  Nf4 {[%clk 0:00:03]} 34. Rb2 {[%clk 0:00:34]}  Qd3 {[%clk 0:00:02]} 35. Ng3 {[%clk 0:00:32]} 1-0


[Site "https://www.chess.com"]

[Event "Titled Tuesday Blitz March 15 Early 2022"]
[White "Myshakov, Fyodor"]
[Black "Iljin, Timofey"]
[WhiteFideId "14111284"]
[BlackFideId "14110180"]
[WhiteElo "2310"]
[BlackElo "2396"]
[Result "1/2-1/2"]
[Round "08"]
[TimeControl "180+1"]
[Date "2022.03.15"]
[WhiteClock "0:00:11"]
[BlackClock "0:00:14"]

1. c4 {[%clk 0:02:59]}  f5 {[%clk 0:03:00]} 2. Nc3 {[%clk 0:02:58]}  Nf6 {[%clk 0:03:00]} 3. Nf3 {[%clk 0:02:58]}  g6 {[%clk 0:03:01]} 4. g3 {[%clk 0:02:58]}  Bg7 {[%clk 0:03:02]} 5. Bg2 {[%clk 0:02:57]}  O-O {[%clk 0:03:02]} 6. O-O {[%clk 0:02:58]}  d6 {[%clk 0:03:03]} 7. d4 {[%clk 0:02:58]}  Qe8 {[%clk 0:03:03]} 8. d5 {[%clk 0:02:57]}  a5 {[%clk 0:03:02]} 9. Nd4 {[%clk 0:02:57]}  Na6 {[%clk 0:03:02]} 10. Rb1 {[%clk 0:02:56]}  Bd7 {[%clk 0:03:02]} 11. b3 {[%clk 0:02:56]}  c6 {[%clk 0:02:59]} 12. dxc6 {[%clk 0:02:55]}  bxc6 {[%clk 0:03:00]} 13. a3 {[%clk 0:02:54]}  e5 {[%clk 0:02:56]} 14. Nc2 {[%clk 0:02:49]}  Qe7 {[%clk 0:02:53]} 15. b4 {[%clk 0:02:48]}  axb4 {[%clk 0:02:46]} 16. axb4 {[%clk 0:02:49]}  Rab8 {[%clk 0:02:46]} 17. b5 {[%clk 0:02:45]}  cxb5 {[%clk 0:02:46]} 18. cxb5 {[%clk 0:02:42]}  Nc5 {[%clk 0:02:45]} 19. Nd5 {[%clk 0:02:42]}  Nxd5 {[%clk 0:02:43]} 20. Qxd5+ {[%clk 0:02:38]}  Kh8 {[%clk 0:02:43]} 21. Rd1 {[%clk 0:02:36]}  Bxb5 {[%clk 0:02:39]} 22. Qxd6 {[%clk 0:02:28]}  Qxd6 {[%clk 0:02:38]} 23. Rxd6 {[%clk 0:02:29]}  Bxe2 {[%clk 0:02:38]} 24. Rxb8 {[%clk 0:02:28]}  Rxb8 {[%clk 0:02:39]} 25. Na3 {[%clk 0:02:16]}  Nd3 {[%clk 0:02:34]} 26. Bg5 {[%clk 0:02:04]}  h6 {[%clk 0:02:31]} 27. Bf6 {[%clk 0:01:55]}  Bxf6 {[%clk 0:02:24]} 28. Rxf6 {[%clk 0:01:55]}  Rb3 {[%clk 0:02:17]} 29. Rf8+ {[%clk 0:01:36]}  Kg7 {[%clk 0:02:17]} 30. Ra8 {[%clk 0:01:36]}  e4 {[%clk 0:02:15]} 31. Bf1 {[%clk 0:01:34]}  Bf3 {[%clk 0:02:08]} 32. Nc4 {[%clk 0:01:22]}  Nc1 {[%clk 0:01:45]} 33. Ra7+ {[%clk 0:01:09]}  Kf6 {[%clk 0:01:43]} 34. Ra6+ {[%clk 0:01:07]}  Kg5 {[%clk 0:01:38]} 35. h4+ {[%clk 0:00:54]}  Kh5 {[%clk 0:01:37]} 36. Nd2 {[%clk 0:00:50]}  Rb2 {[%clk 0:01:26]} 37. Nxf3 {[%clk 0:00:41]}  exf3 {[%clk 0:01:25]} 38. Re6 {[%clk 0:00:29]}  Nb3 {[%clk 0:01:15]} 39. Re1 {[%clk 0:00:18]}  Nd4 {[%clk 0:01:05]} 40. Bc4 {[%clk 0:00:17]}  Kg4 {[%clk 0:00:47]} 41. Ba6 {[%clk 0:00:16]}  g5 {[%clk 0:00:46]} 42. hxg5 {[%clk 0:00:16]}  hxg5 {[%clk 0:00:46]} 43. Bc4 {[%clk 0:00:15]}  Kh3 {[%clk 0:00:27]} 44. Bf1+ {[%clk 0:00:12]}  Kg4 {[%clk 0:00:26]} 45. Bc4 {[%clk 0:00:12]}  f4 {[%clk 0:00:24]} 46. gxf4 {[%clk 0:00:10]}  Kxf4 {[%clk 0:00:24]} 47. Ba6 {[%clk 0:00:08]}  Ne2+ {[%clk 0:00:23]} 48. Bxe2 {[%clk 0:00:05]}  fxe2 {[%clk 0:00:24]} 49. Kg2 {[%clk 0:00:05]}  g4 {[%clk 0:00:22]} 50. Ra1 {[%clk 0:00:05]}  Rd2 {[%clk 0:00:21]} 51. Re1 {[%clk 0:00:02]}  Ke4 {[%clk 0:00:20]} 52. Kg3 {[%clk 0:00:02]}  Kd3 {[%clk 0:00:20]} 53. f3 {[%clk 0:00:02]}  gxf3 {[%clk 0:00:17]} 54. Kf2 {[%clk 0:00:02]}  Ra2 {[%clk 0:00:18]} 55. Rb1 {[%clk 0:00:02]}  Rd2 {[%clk 0:00:17]} 56. Kxf3 {[%clk 0:00:02]}  Kc2 {[%clk 0:00:11]} 57. Re1 {[%clk 0:00:02]}  Kd3 {[%clk 0:00:10]} 58. Kf2 {[%clk 0:00:02]}  Ra2 {[%clk 0:00:09]} 59. Rb1 {[%clk 0:00:03]}  Rd2 {[%clk 0:00:09]} 60. Re1 {[%clk 0:00:03]}  Rb2 {[%clk 0:00:10]} 61. Ra1 {[%clk 0:00:04]}  Kd2 {[%clk 0:00:10]} 62. Re1 {[%clk 0:00:04]}  Kd3 {[%clk 0:00:10]} 63. Ra1 {[%clk 0:00:04]}  Rb3 {[%clk 0:00:11]} 64. Re1 {[%clk 0:00:04]}  Rb6 {[%clk 0:00:09]} 65. Rxe2 {[%clk 0:00:04]}  Rf6+ {[%clk 0:00:10]} 66. Ke1 {[%clk 0:00:04]}  Rg6 {[%clk 0:00:10]} 67. Rd2+ {[%clk 0:00:05]}  Ke3 {[%clk 0:00:10]} 68. Re2+ {[%clk 0:00:05]}  Kd3 {[%clk 0:00:11]} 69. Rd2+ {[%clk 0:00:06]}  Kc3 {[%clk 0:00:11]} 70. Rd8 {[%clk 0:00:05]}  Re6+ {[%clk 0:00:12]} 71. Kf2 {[%clk 0:00:06]}  Kc4 {[%clk 0:00:12]} 72. Kf3 {[%clk 0:00:06]}  Kc5 {[%clk 0:00:13]} 73. Rc8+ {[%clk 0:00:06]}  Kd6 {[%clk 0:00:13]} 74. Rc3 {[%clk 0:00:07]}  Kd5 {[%clk 0:00:13]} 75. Rd3+ {[%clk 0:00:07]}  Kc4 {[%clk 0:00:13]} 76. Re3 {[%clk 0:00:07]}  Rf6+ {[%clk 0:00:13]} 77. Ke2 {[%clk 0:00:07]}  Kd4 {[%clk 0:00:13]} 78. Rf3 {[%clk 0:00:08]}  Ra6 {[%clk 0:00:12]} 79. Rf4+ {[%clk 0:00:09]}  Ke5 {[%clk 0:00:13]} 80. Rb4 {[%clk 0:00:09]}  Ra3 {[%clk 0:00:13]} 81. Kd2 {[%clk 0:00:09]}  Kd5 {[%clk 0:00:13]} 82. Rh4 {[%clk 0:00:09]}  Kc5 {[%clk 0:00:13]} 83. Ke2 {[%clk 0:00:09]}  Rb3 {[%clk 0:00:13]} 84. Kf2 {[%clk 0:00:10]}  Rb8 {[%clk 0:00:13]} 85. Kg2 {[%clk 0:00:10]}  Rg8+ {[%clk 0:00:13]} 86. Kf2 {[%clk 0:00:10]}  Rf8+ {[%clk 0:00:14]} 87. Kg2 {[%clk 0:00:11]} 1/2-1/2


[Site "https://www.chess.com"]

[Event "Titled Tuesday Blitz March 15 Early 2022"]
[White "Nakamura, Hikaru"]
[Black "Hammer, Jon Ludvig"]
[WhiteFideId "2016192"]
[BlackFideId "1503707"]
[WhiteElo "2850"]
[BlackElo "2607"]
[Result "1-0"]
[Round "08"]
[TimeControl "180+1"]
[Date "2022.03.15"]
[WhiteClock "0:01:09"]
[BlackClock "0:00:09"]

1. Nf3 {[%clk 0:03:00]}  Nf6 {[%clk 0:02:59]} 2. b3 {[%clk 0:02:56]}  d5 {[%clk 0:02:57]} 3. Bb2 {[%clk 0:02:57]}  Bf5 {[%clk 0:02:52]} 4. g3 {[%clk 0:02:52]}  h6 {[%clk 0:02:51]} 5. d3 {[%clk 0:02:53]}  e6 {[%clk 0:02:51]} 6. Nbd2 {[%clk 0:02:54]}  Bh7 {[%clk 0:02:50]} 7. Bg2 {[%clk 0:02:54]}  Be7 {[%clk 0:02:50]} 8. O-O {[%clk 0:02:53]}  O-O {[%clk 0:02:49]} 9. Re1 {[%clk 0:02:53]}  Nfd7 {[%clk 0:02:25]} 10. e4 {[%clk 0:02:53]}  Bf6 {[%clk 0:02:24]} 11. e5 {[%clk 0:02:53]}  Be7 {[%clk 0:02:24]} 12. h4 {[%clk 0:02:53]}  b5 {[%clk 0:02:11]} 13. Nf1 {[%clk 0:02:45]}  a5 {[%clk 0:02:07]} 14. a4 {[%clk 0:02:37]}  bxa4 {[%clk 0:02:06]} 15. Rxa4 {[%clk 0:02:37]}  Nb6 {[%clk 0:02:04]} 16. Rg4 {[%clk 0:02:29]}  a4 {[%clk 0:01:43]} 17. Ne3 {[%clk 0:02:21]}  axb3 {[%clk 0:01:39]} 18. cxb3 {[%clk 0:02:21]}  Nc6 {[%clk 0:01:38]} 19. Bf1 {[%clk 0:02:12]}  Kh8 {[%clk 0:01:30]} 20. Rf4 {[%clk 0:02:03]}  Ra2 {[%clk 0:01:25]} 21. Qb1 {[%clk 0:01:56]}  Ra8 {[%clk 0:01:20]} 22. Nc2 {[%clk 0:01:48]}  Qd7 {[%clk 0:00:57]} 23. g4 {[%clk 0:01:38]}  g5 {[%clk 0:00:44]} 24. hxg5 {[%clk 0:01:35]}  hxg5 {[%clk 0:00:45]} 25. Rf6 {[%clk 0:01:34]}  Bxf6 {[%clk 0:00:45]} 26. exf6 {[%clk 0:01:34]}  e5 {[%clk 0:00:46]} 27. Bh3 {[%clk 0:01:26]}  Bxd3 {[%clk 0:00:24]} 28. Qc1 {[%clk 0:01:22]}  Rg8 {[%clk 0:00:23]} 29. Nb4 {[%clk 0:01:15]}  Nxb4 {[%clk 0:00:18]} 30. Nxe5 {[%clk 0:01:16]}  Qe6 {[%clk 0:00:15]} 31. Ng6+ {[%clk 0:01:10]}  Rxg6 {[%clk 0:00:12]} 32. Rxe6 {[%clk 0:01:10]}  fxe6 {[%clk 0:00:09]} 33. Qxc7 {[%clk 0:01:09]} 1-0


[Site "https://www.chess.com"]

[Event "Titled Tuesday Blitz March 15 Early 2022"]
[White "Narayanan.S.L"]
[Black "Maltsevskaya, Aleksandra"]
[WhiteFideId "5058422"]
[BlackFideId "24174041"]
[WhiteElo "2494"]
[BlackElo "2241"]
[Result "0-1"]
[Round "08"]
[TimeControl "180+1"]
[Date "2022.03.15"]
[WhiteClock "0:00:05"]
[BlackClock "0:00:05"]

1. Nf3 {[%clk 0:03:00]}  Nf6 {[%clk 0:02:59]} 2. b3 {[%clk 0:03:01]}  g6 {[%clk 0:02:58]} 3. Bb2 {[%clk 0:03:02]}  Bg7 {[%clk 0:02:58]} 4. g3 {[%clk 0:03:02]}  O-O {[%clk 0:02:59]} 5. Bg2 {[%clk 0:03:02]}  c5 {[%clk 0:02:59]} 6. c4 {[%clk 0:03:01]}  d5 {[%clk 0:02:58]} 7. cxd5 {[%clk 0:03:02]}  Nxd5 {[%clk 0:02:59]} 8. Bxg7 {[%clk 0:03:01]}  Kxg7 {[%clk 0:03:00]} 9. d4 {[%clk 0:03:02]}  Nc6 {[%clk 0:02:47]} 10. O-O {[%clk 0:03:01]}  cxd4 {[%clk 0:02:37]} 11. Nxd4 {[%clk 0:03:02]}  Qb6 {[%clk 0:02:25]} 12. Nxc6 {[%clk 0:02:56]}  bxc6 {[%clk 0:02:26]} 13. Na3 {[%clk 0:02:56]}  Rd8 {[%clk 0:02:23]} 14. Qd2 {[%clk 0:02:52]}  Ba6 {[%clk 0:02:21]} 15. Rfc1 {[%clk 0:02:50]}  Rac8 {[%clk 0:02:19]} 16. Nc4 {[%clk 0:02:49]}  Qb4 {[%clk 0:01:19]} 17. Qb2+ {[%clk 0:02:37]}  Kg8 {[%clk 0:01:18]} 18. Ne5 {[%clk 0:02:36]}  c5 {[%clk 0:01:05]} 19. Rd1 {[%clk 0:02:01]}  Nc3 {[%clk 0:00:53]} 20. Rxd8+ {[%clk 0:02:00]}  Rxd8 {[%clk 0:00:54]} 21. Nc6 {[%clk 0:02:00]}  Nxe2+ {[%clk 0:00:52]} 22. Kh1 {[%clk 0:02:00]}  Qd2 {[%clk 0:00:50]} 23. Nxe7+ {[%clk 0:01:44]}  Kf8 {[%clk 0:00:50]} 24. Qf6 {[%clk 0:01:44]}  Rd6 {[%clk 0:00:24]} 25. Qe5 {[%clk 0:01:09]}  Re6 {[%clk 0:00:23]} 26. Nxg6+ {[%clk 0:01:08]}  hxg6 {[%clk 0:00:22]} 27. Qxc5+ {[%clk 0:01:09]}  Kg7 {[%clk 0:00:22]} 28. h4 {[%clk 0:01:00]}  Qd4 {[%clk 0:00:21]} 29. Qxd4+ {[%clk 0:00:55]}  Nxd4 {[%clk 0:00:22]} 30. Rd1 {[%clk 0:00:56]}  Nb5 {[%clk 0:00:20]} 31. a4 {[%clk 0:00:53]}  Nc3 {[%clk 0:00:20]} 32. Rd7 {[%clk 0:00:53]}  Re1+ {[%clk 0:00:18]} 33. Kh2 {[%clk 0:00:54]}  Bf1 {[%clk 0:00:18]} 34. Rxa7 {[%clk 0:00:33]}  Bxg2 {[%clk 0:00:18]} 35. Kxg2 {[%clk 0:00:33]}  Rb1 {[%clk 0:00:18]} 36. a5 {[%clk 0:00:33]}  Rxb3 {[%clk 0:00:18]} 37. Rc7 {[%clk 0:00:34]}  Ra3 {[%clk 0:00:18]} 38. a6 {[%clk 0:00:33]}  Nb5 {[%clk 0:00:17]} 39. Rb7 {[%clk 0:00:30]}  Nd4 {[%clk 0:00:15]} 40. Rb6 {[%clk 0:00:29]}  Ra2 {[%clk 0:00:14]} 41. g4 {[%clk 0:00:30]}  Ne6 {[%clk 0:00:14]} 42. Rc6 {[%clk 0:00:29]}  Ra4 {[%clk 0:00:08]} 43. f3 {[%clk 0:00:25]}  Ra3 {[%clk 0:00:09]} 44. g5 {[%clk 0:00:20]}  Nd4 {[%clk 0:00:08]} 45. Rf6 {[%clk 0:00:20]}  Nf5 {[%clk 0:00:06]} 46. h5 {[%clk 0:00:20]}  Ne3+ {[%clk 0:00:04]} 47. Kg3 {[%clk 0:00:17]}  gxh5 {[%clk 0:00:05]} 48. Kh4 {[%clk 0:00:16]}  Nd5 {[%clk 0:00:04]} 49. Rf5 {[%clk 0:00:14]}  Ne7 {[%clk 0:00:04]} 50. Rc5 {[%clk 0:00:13]}  Ng6+ {[%clk 0:00:03]} 51. Kxh5 {[%clk 0:00:13]}  Ra4 {[%clk 0:00:04]} 52. f4 {[%clk 0:00:10]}  Rxf4 {[%clk 0:00:04]} 53. Rc4 {[%clk 0:00:05]}  Rxc4 {[%clk 0:00:04]} 54. a7 {[%clk 0:00:05]}  Rh4# {[%clk 0:00:05]} 0-1


[Site "https://www.chess.com"]

[Event "Titled Tuesday Blitz March 15 Early 2022"]
[White "Odegov, Artem"]
[Black "Gatterer, Florian"]
[WhiteFideId "34183644"]
[BlackFideId "811688"]
[WhiteElo "2286"]
[BlackElo "2218"]
[Result "0-1"]
[Round "08"]
[TimeControl "180+1"]
[Date "2022.03.15"]
[WhiteClock "0:00:01"]
[BlackClock "0:01:09"]

1. d4 {[%clk 0:03:00]}  Nf6 {[%clk 0:02:59]} 2. c4 {[%clk 0:03:00]}  e6 {[%clk 0:02:59]} 3. Nf3 {[%clk 0:03:00]}  d5 {[%clk 0:02:58]} 4. Nc3 {[%clk 0:03:00]}  c5 {[%clk 0:02:58]} 5. cxd5 {[%clk 0:02:59]}  Nxd5 {[%clk 0:02:59]} 6. e4 {[%clk 0:02:59]}  Nxc3 {[%clk 0:02:59]} 7. bxc3 {[%clk 0:03:00]}  cxd4 {[%clk 0:02:59]} 8. cxd4 {[%clk 0:03:01]}  Bb4+ {[%clk 0:02:59]} 9. Bd2 {[%clk 0:03:01]}  Bxd2+ {[%clk 0:02:58]} 10. Qxd2 {[%clk 0:03:02]}  O-O {[%clk 0:02:58]} 11. Be2 {[%clk 0:02:59]}  b6 {[%clk 0:02:56]} 12. O-O {[%clk 0:02:59]}  Bb7 {[%clk 0:02:56]} 13. Qe3 {[%clk 0:02:55]}  Nd7 {[%clk 0:02:55]} 14. Rac1 {[%clk 0:02:27]}  Rc8 {[%clk 0:02:55]} 15. Rxc8 {[%clk 0:02:26]}  Qxc8 {[%clk 0:02:56]} 16. Rc1 {[%clk 0:02:26]}  Qa8 {[%clk 0:02:56]} 17. Nd2 {[%clk 0:02:24]}  Rc8 {[%clk 0:02:53]} 18. Rxc8+ {[%clk 0:02:15]}  Qxc8 {[%clk 0:02:53]} 19. Nc4 {[%clk 0:02:16]}  Qc7 {[%clk 0:02:44]} 20. e5 {[%clk 0:02:10]}  Qc6 {[%clk 0:02:33]} 21. f3 {[%clk 0:02:06]}  Ba6 {[%clk 0:02:19]} 22. Nd6 {[%clk 0:01:35]}  Bxe2 {[%clk 0:02:07]} 23. Qxe2 {[%clk 0:01:36]}  Qc3 {[%clk 0:02:03]} 24. Qd1 {[%clk 0:01:14]}  Qe3+ {[%clk 0:01:53]} 25. Kh1 {[%clk 0:01:12]}  Nf8 {[%clk 0:01:53]} 26. h3 {[%clk 0:01:10]}  h5 {[%clk 0:01:51]} 27. Nc8 {[%clk 0:01:00]}  Ng6 {[%clk 0:01:43]} 28. Nxa7 {[%clk 0:00:26]}  Nf4 {[%clk 0:01:42]} 29. a4 {[%clk 0:00:26]}  h4 {[%clk 0:01:35]} 30. Nb5 {[%clk 0:00:22]}  Ne2 {[%clk 0:01:32]} 31. Nd6 {[%clk 0:00:04]}  Ng3+ {[%clk 0:01:22]} 32. Kh2 {[%clk 0:00:05]}  Qf4 {[%clk 0:01:22]} 33. Kg1 {[%clk 0:00:05]}  Qe3+ {[%clk 0:01:18]} 34. Kh2 {[%clk 0:00:05]}  Ne2 {[%clk 0:01:13]} 35. Ne4 {[%clk 0:00:01]}  Nxd4 {[%clk 0:01:09]} 0-1


[Site "https://www.chess.com"]

[Event "Titled Tuesday Blitz March 15 Early 2022"]
[White "Omariev, Maksim"]
[Black "Pajeken, Jakob Leon"]
[WhiteFideId "4193423"]
[BlackFideId "12942839"]
[WhiteElo "2461"]
[BlackElo "2351"]
[Result "0-1"]
[Round "08"]
[TimeControl "180+1"]
[Date "2022.03.15"]
[WhiteClock "0:00:01"]
[BlackClock "0:00:23"]

1. b3 {[%clk 0:02:44]}  d5 {[%clk 0:02:59]} 2. Bb2 {[%clk 0:02:45]}  Nf6 {[%clk 0:02:59]} 3. f4 {[%clk 0:02:45]}  Bf5 {[%clk 0:02:54]} 4. Nf3 {[%clk 0:02:45]}  e6 {[%clk 0:02:54]} 5. e3 {[%clk 0:02:41]}  Nbd7 {[%clk 0:02:53]} 6. Nc3 {[%clk 0:02:41]}  c6 {[%clk 0:02:53]} 7. Ne2 {[%clk 0:02:41]}  h5 {[%clk 0:02:52]} 8. Ng3 {[%clk 0:02:38]}  Bg4 {[%clk 0:02:40]} 9. h3 {[%clk 0:02:36]}  Bxf3 {[%clk 0:02:39]} 10. Qxf3 {[%clk 0:02:37]}  h4 {[%clk 0:02:40]} 11. Ne2 {[%clk 0:02:37]}  Bd6 {[%clk 0:02:36]} 12. O-O-O {[%clk 0:02:36]}  e5 {[%clk 0:02:35]} 13. g4 {[%clk 0:02:26]}  hxg3 {[%clk 0:02:34]} 14. Qxg3 {[%clk 0:02:25]}  Nh5 {[%clk 0:02:28]} 15. Qf2 {[%clk 0:02:03]}  exf4 {[%clk 0:02:24]} 16. exf4 {[%clk 0:02:01]}  Ndf6 {[%clk 0:02:23]} 17. Bg2 {[%clk 0:01:59]}  Qc7 {[%clk 0:02:22]} 18. Rhf1 {[%clk 0:01:45]}  O-O-O {[%clk 0:02:17]} 19. Qxa7 {[%clk 0:01:44]}  Nxf4 {[%clk 0:02:07]} 20. Nxf4 {[%clk 0:01:42]}  Bxf4 {[%clk 0:02:07]} 21. Bd4 {[%clk 0:01:32]}  Be5 {[%clk 0:02:02]} 22. Bb6 {[%clk 0:01:28]}  Qd6 {[%clk 0:01:52]} 23. d4 {[%clk 0:00:44]}  Bf4+ {[%clk 0:01:52]} 24. Kb2 {[%clk 0:00:43]}  Rde8 {[%clk 0:01:50]} 25. a4 {[%clk 0:00:21]}  Qb8 {[%clk 0:01:47]} 26. Qa5 {[%clk 0:00:20]}  Re2 {[%clk 0:01:45]} 27. Bf3 {[%clk 0:00:20]}  Rh2 {[%clk 0:01:43]} 28. Rg1 {[%clk 0:00:03]}  R8xh3 {[%clk 0:01:38]} 29. Rdf1 {[%clk 0:00:03]}  Bh6 {[%clk 0:01:31]} 30. Qe1 {[%clk 0:00:01]}  Qd6 {[%clk 0:01:23]} 31. Be2 {[%clk 0:00:02]}  Re3 {[%clk 0:01:20]} 32. Rf2 {[%clk 0:00:01]}  Ne4 {[%clk 0:01:06]} 33. Rxh2 {[%clk 0:00:01]}  Qxh2 {[%clk 0:01:06]} 34. Bd3 {[%clk 0:00:02]}  Rxe1 {[%clk 0:01:04]} 35. Rxe1 {[%clk 0:00:02]}  Qd2 {[%clk 0:01:03]} 36. Rf1 {[%clk 0:00:02]}  Qc3+ {[%clk 0:00:47]} 37. Ka2 {[%clk 0:00:02]}  f6 {[%clk 0:00:38]} 38. a5 {[%clk 0:00:02]}  Qb4 {[%clk 0:00:34]} 39. Kb2 {[%clk 0:00:02]}  c5 {[%clk 0:00:28]} 40. Rh1 {[%clk 0:00:02]}  Qxd4+ {[%clk 0:00:27]} 41. Ka2 {[%clk 0:00:02]}  Nc3+ {[%clk 0:00:26]} 42. Ka3 {[%clk 0:00:02]}  Qb4+ {[%clk 0:00:25]} 43. Kb2 {[%clk 0:00:02]}  c4 {[%clk 0:00:24]} 44. Bf5+ {[%clk 0:00:01]}  Kb8 {[%clk 0:00:23]} 0-1


[Site "https://www.chess.com"]